fUSD/lending_fUSD_20250107
["ID","MTS","AMOUNT","RATE_DAILY","PERIOD"]
[348004724,1736265044529,-584.65,0.00010137,2]
[348004725,1736265044538,-500.0,0.00010137,2]
[348004726,1736265044547,-500.0,0.00010137,2]
[348004727,1736265044557,-500.0,0.00010137,2]
[348004729,1736265044567,-500.0,0.00010137,2]
[348004731,1736265044577,-500.0,0.00010137,2]
[348004733,1736265044588,-500.0,0.00010137,2]
[348004735,1736265044598,-500.0,0.00010137,2]
[348004737,1736265044607,-719.43,0.00010137,2]
[348004739,1736265044616,-500.0,0.00010137,2]
[348004741,1736265044626,-909.73,0.00010137,2]
[348004743,1736265044635,-665.41,0.00010137,2]
[348004745,1736265044644,-609.83,0.00010137,2]
[348004747,1736265044654,-500.0,0.00010137,2]
[348004749,1736265044663,-500.0,0.00010137,2]
[348004751,1736265044673,-500.0,0.00010137,2]
[348004753,1736265044682,-833.83,0.00010137,2]
[348004755,1736265044692,-500.0,0.00010137,2]
[348004757,1736265044701,-1112.59,0.00010137,2]
[348004759,1736265044712,-644.2,0.00010137,2]
[348004762,1736265044722,-601.86,0.00010137,2]
[348004764,1736265044734,-500.0,0.00010137,2]
[348004766,1736265044744,-1147.57,0.00010137,2]
[348004768,1736265044756,-500.0,0.00010137,2]
[348004770,1736265044766,-500.0,0.00010137,2]
[348004772,1736265044776,-682.28,0.00010137,2]
[348004774,1736265044788,-967.08,0.00010137,2]
[348004776,1736265044803,-500.0,0.00010137,2]
[348004778,1736265044816,-500.0,0.00010137,2]
[348004780,1736265044828,-500.0,0.00010137,2]
[348004782,1736265044841,-500.0,0.00010137,2]
[348004784,1736265044850,-500.0,0.00010137,2]
[348004786,1736265044860,-500.0,0.00010137,2]
[348004788,1736265044869,-611.78161876,0.00010137,2]
[348004790,1736265044878,-500.0,0.00010137,2]
[348004792,1736265044888,-473.59560358,0.00010137,2]
[348004794,1736265044897,-576.44,0.00010137,2]
[348004796,1736265044906,-500.0,0.00010137,2]
[348004798,1736265044917,-500.0,0.00010137,2]
[348004800,1736265044927,-500.0,0.00010137,2]
[348004802,1736265044937,-503.81,0.00010137,2]
[348004804,1736265044947,-500.0,0.00010137,2]
[348004806,1736265044957,-670.32,0.00010137,2]
[348004808,1736265044966,-500.0,0.00010137,2]
[348004810,1736265044975,-500.0,0.00010137,2]
[348004812,1736265044985,-600.86,0.00010137,2]
[348004814,1736265044994,-500.0,0.00010137,2]
[348004816,1736265045007,-760.93,0.00010137,2]
[348004818,1736265045017,-500.0,0.00010137,2]
[348004820,1736265045026,-1513.34,0.00010137,2]
[348004822,1736265045036,-500.0,0.00010137,2]
[348004824,1736265045046,-500.0,0.00010137,2]
[348004826,1736265045056,-1293.9,0.00010137,2]
[348004828,1736265045066,-533.23,0.00010137,2]
[348004830,1736265045076,-500.0,0.00010137,2]
[348004832,1736265045085,-602.74257638,0.00010137,2]
[348004834,1736265045094,-500.0,0.00010137,2]
[348004836,1736265045104,-528.68,0.00010137,2]
[348004838,1736265045113,-309.02834514,0.00010137,2]
[348004840,1736265045123,-1562.06,0.00010137,2]
[348004842,1736265045132,-500.0,0.00010137,2]
[348004844,1736265045141,-500.0,0.00010137,2]
[348004846,1736265045151,-1301.28,0.00010137,2]
[348004848,1736265045161,-700.0,0.00010138,2]
[348004850,1736265045170,-161.05129517,0.00010145,2]
[348004852,1736265045180,-164.97112933,0.00010172,2]
[348004853,1736265045189,-353.68138949,0.00010231,2]
[348004855,1736265045199,-1895.99,0.00010238,2]
[348004858,1736265045210,-1901.26,0.00010238,2]
[348004859,1736265045219,-2491.67,0.00010238,2]
[348004861,1736265045229,-1847.76,0.00010238,2]
[348004864,1736265045239,-2407.36,0.00010238,2]
[348004866,1736265045252,-2187.63,0.00010238,2]
[348004868,1736265045262,-4786.02,0.00010238,2]
[348004870,1736265045271,-4051.67,0.00010238,2]
[348004872,1736265045281,-500.0,0.00010238,2]
[348004874,1736265045291,-1859.52,0.00010238,2]
[348004876,1736265045300,-4789.54,0.00010238,2]
[348004878,1736265045311,-500.0,0.00010238,2]
[348004879,1736265045321,-874.57,0.00010238,2]
[348004881,1736265045331,-500.0,0.00010238,2]
[348004883,1736265045341,-781.91,0.00010238,2]
[348004885,1736265045353,-500.0,0.00010238,2]
[348004887,1736265045363,-553.06,0.00010238,2]
[348004889,1736265045373,-1045.29,0.00010238,2]
[348004891,1736265045383,-712.3,0.00010238,2]
[348004893,1736265045394,-551.81,0.00010238,2]
[348004895,1736265045404,-500.0,0.00010238,2]
[348004897,1736265045414,-624.46,0.00010238,2]
[348004898,1736265045423,-500.0,0.00010238,2]
[348004901,1736265045433,-843.89,0.00010238,2]
[348004903,1736265045444,-593.28,0.00010238,2]
[348004905,1736265045453,-1066.73,0.00010238,2]
[348004907,1736265045463,-500.0,0.00010238,2]
[348004909,1736265045473,-1446.68,0.00010238,2]
[348004911,1736265045482,-99.82374655,0.00010238,2]
[348004913,1736265045503,-509.75625345,0.00010238,2]
[348004915,1736265045513,-1490.63,0.00010238,2]
[348004917,1736265045522,-822.63,0.00010238,2]
[348004919,1736265045532,-500.0,0.00010238,2]
[348004921,1736265045542,-691.14,0.00010238,2]
[348004924,1736265045552,-1028.11,0.00010238,2]
[348004926,1736265045562,-790.24,0.00010238,2]
[348004927,1736265045573,-716.8,0.00010238,2]
[348004929,1736265045583,-1049.17,0.00010238,2]
[348004931,1736265045592,-1080.02,0.00010238,2]
[348004933,1736265045602,-2360.61,0.00010238,2]
[348004935,1736265045611,-1733.37,0.00010238,2]
[348004937,1736265045621,-657.27,0.00010238,2]
[348004939,1736265045631,-500.0,0.00010238,2]
[348004940,1736265045641,-664.01,0.00010238,2]
[348004941,1736265045651,-1412.48,0.00010238,2]
[348004942,1736265045661,-2045.59,0.00010238,2]
[348004943,1736265045671,-500.0,0.00010238,2]
[348004944,1736265045681,-1850.57,0.00010238,2]
[348004945,1736265045691,-1821.01,0.00010238,2]
[348004946,1736265045700,-1409.33,0.00010238,2]
[348004947,1736265045710,-707.06,0.00010238,2]
[348004948,1736265045720,-1980.86,0.00010238,2]
[348004949,1736265045732,-1204.09,0.00010238,2]
[348004950,1736265045743,-500.0,0.00010238,2]
[348004951,1736265045757,-2080.6,0.00010238,2]
[348004952,1736265045767,-1340.44,0.00010238,2]
[348004953,1736265045779,-2491.17,0.00010238,2]
[348004954,1736265045789,-500.0,0.00010238,2]
[348004955,1736265045800,-689.18,0.00010238,2]
[348004956,1736265045810,-500.0,0.00010238,2]
[348004957,1736265045820,-1986.46719467,0.00010238,2]
[348004958,1736265045833,-2154.82280533,0.00010238,2]
[348004959,1736265045843,-919.66,0.00010238,2]
[348004960,1736265045853,-500.0,0.00010238,2]
[348004962,1736265045862,-500.0,0.00010238,2]
[348004964,1736265045873,-589.62,0.00010238,2]
[348004966,1736265045883,-4103.05204286,0.00010238,2]
[348004969,1736265045896,-310.68795714,0.00010238,2]
[348004972,1736265045906,-316.67553089,0.00010238,2]
[348004975,1736265045918,-594.02591671,0.00010238,2]
[348004978,1736265045930,-389.27648244,0.00010238,2]
[348004981,1736265045941,-922.69,0.00010238,2]
[348004983,1736265045952,-5437.69891191,0.00010238,2]
[348004987,1736265045988,-973.77,0.00010238,2]
[348004993,1736265046038,-500.0,9.862e-05,2]
[348004995,1736265046048,-237.78315805,0.00010238,2]
[348004997,1736265046058,-313.26684216,0.00010238,2]
[348005000,1736265046070,-453.75144242,0.00010238,2]
[348005002,1736265046083,-1395.96171542,0.00010238,2]
[348005004,1736265046093,-793.65,0.00010238,2]
[348005006,1736265046103,-729.47828458,0.00010238,2]
[348005008,1736265046115,-1700.88171542,0.00010238,2]
[348005010,1736265046126,-1212.63756475,0.00010238,2]
[348005012,1736265046137,-789.49764434,0.00010238,2]
[348005014,1736265046148,-433.92479091,0.00010238,2]
[348005017,1736265046158,-851.57,0.00010238,2]
[348005020,1736265046167,-1422.27,0.00010238,2]
[348005023,1736265046177,-3956.33,0.00010238,2]
[348005027,1736265046187,-500.0,0.00010238,2]
[348005030,1736265046197,-503.93,0.00010238,2]
[348005031,1736265046206,-559.77,0.00010239,2]
[348005034,1736265046217,-500.0,0.00010239,2]
[348005038,1736265046226,-500.0,0.00010239,2]
[348005039,1736265046236,-287.52295347,0.00010239,2]
[348005041,1736265046246,-500.0,0.00010239,2]
[348005043,1736265046257,-500.0,0.00010239,2]
[348005045,1736265046267,-500.0,0.00010239,2]
[348005047,1736265046276,-500.0,0.00010239,2]
[348005049,1736265046286,-418.16,0.00010239,2]
[348005051,1736265046296,-500.0,0.00010239,2]
[348005053,1736265046306,-500.0,0.00010239,2]
[348005055,1736265046317,-500.0,0.00010239,2]
[348005057,1736265046327,-386.51829599,0.00010239,2]
[348005059,1736265046336,-500.0,0.00010239,2]
[348005061,1736265046346,-500.0,0.00010239,2]
[348005063,1736265046356,-500.0,0.00010239,2]
[348005066,1736265046366,-500.0,0.00010239,2]
[348005068,1736265046376,-585.53,0.00010239,2]
[348005070,1736265046385,-500.0,0.00010239,2]
[348005072,1736265046395,-500.0,0.00010239,2]
[348005073,1736265046405,-601.99,0.00010239,2]
[348005076,1736265046415,-500.0,0.00010239,2]
[348005078,1736265046424,-500.0,0.00010239,2]
[348005079,1736265046434,-500.0,0.00010239,2]
[348005082,1736265046443,-500.0,0.00010239,2]
[348005084,1736265046453,-1441.97,0.00010239,2]
[348005086,1736265046464,-3363.88,0.00010239,2]
[348005088,1736265046474,-523.39,0.00010239,2]
[348005090,1736265046484,-1476.58,0.00010239,2]
[348005092,1736265046494,-1763.05,0.00010239,2]
[348005094,1736265046507,-612.06,0.00010239,2]
[348005096,1736265046516,-2410.75,0.00010239,2]
[348005098,1736265046525,-1380.07,0.00010239,2]
[348005100,1736265046535,-1557.45,0.00010239,2]
[348005102,1736265046545,-980.03,0.00010239,2]
[348005104,1736265046554,-3662.63,0.00010239,2]
[348005106,1736265046564,-2916.88,0.00010242,2]
[348005108,1736265046573,-5847.21,0.00010272,2]
[348005110,1736265046583,-1155.6,0.00010272,2]
[348005112,1736265046592,-4244.68,0.00010272,2]
[348005114,1736265046602,-1043.38,0.00010272,2]
[348005116,1736265046612,-500.0,0.00010272,2]
[348005118,1736265046621,-1689.0,0.00010272,2]
[348005120,1736265046630,-150.0,0.00010332,2]
[348005122,1736265046639,-150.0,0.00010332,2]
[348005124,1736265046649,-150.0,0.00010332,2]
[348005126,1736265046658,-353.68138949,0.00010379,2]
[348005128,1736265046667,-1182.76,0.00010387,2]
[348005130,1736265046677,-518.79,0.00010409,2]
[348005132,1736265046687,-3250.34,0.00010409,2]
[348005134,1736265046696,-5614.38,0.00010409,2]
[348005136,1736265046706,-2894.08,0.00010409,2]
[348005138,1736265046716,-537.75,0.00010409,2]
[348005140,1736265046726,-1809.44,0.00010409,2]
[348005141,1736265046740,-500.0,0.00010409,2]
[348005144,1736265046753,-500.0,0.00010409,2]
[348005145,1736265046764,-4502.67,0.00010409,2]
[348005148,1736265046773,-1623.05,0.00010409,2]
[348005150,1736265046784,-1248.77,0.00010409,2]
[348005152,1736265046795,-2424.72,0.00010409,2]
[348005154,1736265046804,-1058.59,0.00010409,2]
[348005156,1736265046814,-1345.57,0.00010409,2]
[348005158,1736265046824,-500.0,0.0001041,2]
[348005160,1736265046834,-723.82,0.0001041,2]
[348005162,1736265046843,-500.0,0.0001041,2]
[348005164,1736265046852,-500.0,0.0001041,2]
[348005166,1736265046862,-888.27,0.0001041,2]
[348005168,1736265046872,-500.0,0.0001041,2]
[348005169,1736265046881,-504.08,0.0001041,2]
[348005172,1736265046891,-988.57,0.0001041,2]
[348005173,1736265046901,-1259.11,0.0001041,2]
[348005175,1736265046911,-988.95,0.0001041,2]
[348005177,1736265046920,-1361.94,0.0001041,2]
[348005180,1736265046929,-500.0,0.0001041,2]
[348005181,1736265046939,-614.17,0.0001041,2]
[348005182,1736265046948,-559.75,0.0001041,2]
[348005183,1736265046958,-506.42,0.0001041,2]
[348005184,1736265046967,-572.32,0.0001041,2]
[348005185,1736265046976,-141.88257015,0.0001041,2]
[348005186,1736265046990,-447.92742985,0.0001041,2]
[348005187,1736265047003,-701.08,0.0001041,2]
[348005188,1736265047013,-1093.2,0.0001041,2]
[348005189,1736265047023,-500.0,0.0001041,2]
[348005190,1736265047033,-500.0,0.0001041,2]
[348005191,1736265047042,-1052.02,0.0001041,2]
[348005193,1736265047051,-520.13,0.0001041,2]
[348005195,1736265047060,-1028.23,0.0001041,2]
[348005197,1736265047069,-501.43,0.0001041,2]
[348005199,1736265047078,-500.0,0.0001041,2]
[348005201,1736265047089,-1831.56,0.0001041,2]
[348005202,1736265047098,-500.0,0.0001041,2]
[348005204,1736265047107,-500.0,0.0001041,2]
[348005206,1736265047117,-500.0,0.0001041,2]
[348005208,1736265047127,-500.0,0.0001041,2]
[348005211,1736265047136,-1105.66,0.0001041,2]
[348005213,1736265047146,-676.24,0.0001041,2]
[348005215,1736265047155,-638.4,0.0001041,2]
[348005217,1736265047165,-1252.09,0.0001041,2]
[348005218,1736265047174,-608.86,0.0001041,2]
[348005220,1736265047184,-500.0,0.0001041,2]
[348005222,1736265047193,-3035.28,0.0001041,2]
[348005225,1736265047202,-1504.37,0.0001041,2]
[348005227,1736265047212,-884.82,0.0001041,2]
[348005229,1736265047221,-1169.96,0.0001041,2]
[348005230,1736265047231,-500.0,0.0001041,2]
[348005233,1736265047240,-500.0,0.0001041,2]
[348005234,1736265047253,-500.0,0.0001041,2]
[348005236,1736265047263,-500.0,0.0001041,2]
[348005238,1736265047272,-1223.02,0.0001041,2]
[348005240,1736265047282,-500.0,0.0001041,2]
[348005242,1736265047291,-4596.35,0.0001041,2]
[348005244,1736265047300,-650.89,0.0001041,2]
[348005246,1736265047309,-581.61,0.0001041,2]
[348005248,1736265047318,-500.0,0.0001041,2]
[348005250,1736265047328,-500.0,0.0001041,2]
[348005252,1736265047337,-500.0,0.0001041,2]
[348005254,1736265047347,-500.0,0.0001041,2]
[348005256,1736265047358,-500.0,0.0001041,2]
[348005258,1736265047367,-3022.12,0.0001041,2]
[348005260,1736265047377,-500.0,0.0001041,2]
[348005261,1736265047386,-500.0,0.0001041,2]
[348005263,1736265047396,-551.73,0.0001041,2]
[348005265,1736265047405,-546.67,0.0001041,2]
[348005267,1736265047414,-509.19,0.0001041,2]
[348005269,1736265047423,-608.28,0.0001041,2]
[348005271,1736265047433,-515.47,0.0001041,2]
[348005273,1736265047443,-515.829035,0.0001041,2]
[348005275,1736265047452,-1413.33,0.0001041,2]
[348005277,1736265047462,-973.9,0.0001041,2]
[348005279,1736265047471,-500.0,0.0001041,2]
[348005282,1736265047480,-286.34,0.0001041,2]
[348005283,1736265047490,-500.0,0.0001041,2]
[348005286,1736265047500,-500.0,0.0001041,2]
[348005287,1736265047510,-798.67,0.0001041,2]
[348005289,1736265047519,-500.0,0.0001041,2]
[348005292,1736265047529,-500.0,0.0001041,2]
[348005294,1736265047538,-693.28,0.0001041,2]
[348005296,1736265047548,-1157.06353515,0.0001041,2]
[348005298,1736265047565,-1020.21646485,0.0001041,2]
[348005300,1736265047575,-520.07,0.0001041,2]
[348005302,1736265047584,-717.54,0.0001041,2]
[348005304,1736265047593,-543.7,0.0001041,2]
[348005306,1736265047603,-1.42584,0.0001041,2]
[348005405,1736265048581,-500.0,9.862e-05,2]
[348005407,1736265048592,-500.0,9.862e-05,2]
[348005409,1736265048602,-500.0,9.862e-05,2]
[348005411,1736265048612,-800.0,9.9e-05,3]
[348005413,1736265048623,-500.0,0.0001041,2]
[348005415,1736265048633,-500.0,0.0001041,2]
[348005417,1736265048643,-200.37829995,0.0001041,2]
[348005420,1736265048656,-299.62170005,0.0001041,2]
[348005422,1736265048666,-558.743417,0.0001041,2]
[348005424,1736265048677,-1221.68,0.0001041,2]
[348005426,1736265048687,-500.0,0.0001041,2]
[348005428,1736265048697,-500.0,0.0001041,2]
[348005430,1736265048708,-1806.25488295,0.0001041,2]
[348005433,1736265048731,-500.0,9.862e-05,2]
[348005435,1736265048745,-1241.05511705,0.0001041,2]
[348005438,1736265048759,-3713.47,0.0001041,2]
[348005440,1736265048770,-1210.47,0.0001041,2]
[348005441,1736265048779,-231.00488295,0.0001041,2]
[348005444,1736265048792,-268.99511705,0.0001041,2]
[348005446,1736265048803,-45.43010055,0.0001041,2]
[348005448,1736265048815,-1324.66008166,0.0001041,2]
[348005450,1736265048828,-347.24273,0.0001041,2]
[348005453,1736265048840,-976.81,0.0001041,2]
[348005455,1736265048853,-885.54304281,0.0001041,2]
[348005457,1736265048868,-2978.752,0.0001041,2]
[348005460,1736265048881,-416.49204498,0.0001041,2]
[348005462,1736265048892,-17.25872641,0.0001041,2]
[348005464,1736265048904,-482.74127359,0.0001041,2]
[348005466,1736265048914,-500.0,0.0001041,2]
[348005468,1736265048924,-974.97,0.0001041,2]
[348005470,1736265048934,-500.0,0.0001041,2]
[348005472,1736265048943,-472.12742308,0.0001041,2]
[348005474,1736265048955,-790.05257692,0.0001041,2]
[348005476,1736265048965,-791.54,0.0001041,2]
[348005478,1736265048975,-500.0,0.0001041,2]
[348005480,1736265048986,-2074.04,0.0001041,2]
[348005483,1736265048996,-3706.7,0.0001041,2]
[348005484,1736265049011,-771.27,0.0001041,2]
[348005487,1736265049021,-500.0,0.0001041,2]
[348005489,1736265049032,-681.45449236,0.0001041,2]
[348005491,1736265049044,-392.56116985,0.0001041,2]
[348005493,1736265049058,-122.79433779,0.0001041,2]
[348005495,1736265049069,-3975.99,0.0001041,2]
[348005497,1736265049079,-473.20794817,0.0001041,2]
[348005499,1736265049091,-26.79205183,0.0001041,2]
[348005501,1736265049102,-1195.26,0.0001041,2]
[348005503,1736265049112,-2989.25605757,0.0001041,2]
[348005505,1736265049124,-1195.86924979,0.0001041,2]
[348005508,1736265049136,-1457.50062145,0.0001041,2]
[348005510,1736265049149,-402.60231197,0.0001041,2]
[348005535,1736265049396,-1947.06505557,0.0001041,2]
[348005537,1736265049408,-2335.15670365,0.0001041,2]
[348005539,1736265049418,-500.0,0.0001041,2]
[348005541,1736265049428,-1011.74,0.0001041,2]
[348005543,1736265049438,-500.0,0.0001041,2]
[348005545,1736265049448,-979.33,0.0001041,2]
[348005547,1736265049458,-1020.24,0.0001041,2]
[348005549,1736265049468,-1158.64,0.0001041,2]
[348005551,1736265049479,-559.19,0.0001041,2]
[348005553,1736265049489,-500.0,0.0001041,2]
[348005556,1736265049503,-891.51,0.0001041,2]
[348005558,1736265049513,-500.0,0.0001041,2]
[348005560,1736265049524,-500.0,0.0001041,2]
[348005562,1736265049534,-1813.59,0.0001041,2]
[348005564,1736265049544,-500.0,0.0001041,2]
[348005565,1736265049554,-557.74,0.0001041,2]
[348005568,1736265049564,-500.0,0.0001041,2]
[348005569,1736265049575,-500.0,0.0001041,2]
[348005571,1736265049585,-500.0,0.0001041,2]
[348005574,1736265049594,-685.76,0.0001041,2]
[348005576,1736265049604,-576.1,0.0001041,2]
[348005578,1736265049614,-500.0,0.0001041,2]
[348005580,1736265049625,-641.17,0.0001041,2]
[348005582,1736265049635,-1000.26,0.0001041,2]
[348005584,1736265049645,-500.0,0.0001041,2]
[348005586,1736265049654,-500.0,0.0001041,2]
[348005588,1736265049664,-656.49,0.0001041,2]
[348005590,1736265049674,-1072.0,0.0001041,2]
[348005592,1736265049685,-2976.66,0.0001041,2]
[348005594,1736265049695,-500.0,0.0001041,2]
[348005596,1736265049705,-712.47,0.0001041,2]
[348005598,1736265049715,-500.0,0.0001041,2]
[348005599,1736265049726,-2390.61,0.0001041,2]
[348005600,1736265049739,-612.83,0.0001041,2]
[348005601,1736265049753,-1316.89,0.0001041,2]
[348005602,1736265049763,-500.0,0.0001041,2]
[348005603,1736265049774,-500.0,0.0001041,2]
[348005604,1736265049786,-500.0,0.0001041,2]
[348005605,1736265049796,-6225.63,0.0001041,2]
[348005606,1736265049807,-815.35,0.0001041,2]
[348005607,1736265049818,-500.0,0.0001041,2]
[348005609,1736265049829,-510.39,0.0001041,2]
[348005611,1736265049839,-882.03341085,0.0001041,2]
[348005613,1736265049851,-1243.14567385,0.0001041,2]
[348005615,1736265049863,-2763.5809153,0.0001041,2]
[348005617,1736265049873,-168.12809487,0.0001041,2]
[348005619,1736265049884,-760.55921756,0.0001041,2]
[348005621,1736265049896,-347.23268757,0.0001041,2]
[348005623,1736265049906,-64.431018,0.0001041,2]
[348005626,1736265049918,-311.3943667,0.0001041,2]
[348005628,1736265049930,-368.6646153,0.0001041,2]
[348005630,1736265049939,-295.75410395,0.0001041,2]
[348005632,1736265049950,-291.02741815,0.0001041,2]
[348005634,1736265049960,-259.53258185,0.0001041,2]
[348005636,1736265049971,-368.82741815,0.0001041,2]
[348005638,1736265049981,-500.0,0.0001041,2]
[348005640,1736265049991,-839.64,0.0001041,2]
[348005642,1736265050004,-1976.49,0.0001041,2]
[348005644,1736265050014,-815.9225819,0.0001041,2]
[348005646,1736265050025,-959.02379316,0.0001041,2]
[348005652,1736265050065,-222.58377241,0.00010136,2]
[348005654,1736265050075,-73.73362494,0.0001041,2]
[348005656,1736265050085,-10365.96,0.0001041,2]
[348005658,1736265050094,-691.29,0.0001041,2]
[348005660,1736265050103,-500.0,0.0001041,2]
[348005662,1736265050112,-500.0,0.00010411,2]
[348005664,1736265050122,-500.0,0.00010411,2]
[348005666,1736265050131,-500.0,0.00010411,2]
[348005668,1736265050140,-500.0,0.00010411,2]
[348005670,1736265050150,-500.0,0.00010411,2]
[348005672,1736265050158,-500.0,0.00010411,2]
[348005674,1736265050168,-500.0,0.00010411,2]
[348005676,1736265050177,-500.0,0.00010411,2]
[348005677,1736265050186,-500.0,0.00010411,2]
[348005680,1736265050196,-593.17,0.00010411,2]
[348005681,1736265050205,-500.0,0.00010411,2]
[348005683,1736265050215,-500.0,0.00010411,2]
[348005685,1736265050225,-500.0,0.00010411,2]
[348005688,1736265050235,-500.0,0.00010411,2]
[348005690,1736265050245,-500.0,0.00010411,2]
[348005692,1736265050259,-649.17,0.00010411,2]
[348005694,1736265050270,-538.36603182,0.00010411,2]
[348005696,1736265050280,-500.0,0.00010411,2]
[348005698,1736265050290,-500.0,0.00010411,2]
[348005700,1736265050300,-500.0,0.00010411,2]
[348005702,1736265050309,-500.0,0.00010411,2]
[348005704,1736265050319,-500.0,0.00010411,2]
[348005712,1736265050328,-500.0,0.00010411,2]
[348005714,1736265050404,-500.0,0.00010411,2]
[348005716,1736265050413,-586.12,0.00010411,2]
[348005718,1736265050422,-369.28,0.00010411,2]
[348005720,1736265050431,-500.0,0.00010411,2]
[348005722,1736265050440,-500.0,0.00010411,2]
[348005724,1736265050449,-518.31,0.00010411,2]
[348005726,1736265050458,-500.0,0.00010411,2]
[348005728,1736265050467,-500.0,0.00010411,2]
[348005730,1736265050477,-500.0,0.00010411,2]
[348005732,1736265050486,-500.0,0.00010411,2]
[348005734,1736265050495,-613.88,0.00010411,2]
[348005736,1736265050507,-500.0,0.00010411,2]
[348005738,1736265050516,-500.0,0.00010411,2]
[348005740,1736265050525,-500.0,0.00010411,2]
[348005742,1736265050534,-1353.03,0.00010411,2]
[348005744,1736265050544,-500.0,0.00010411,2]
[348005746,1736265050553,-605.9,0.00010411,2]
[348005748,1736265050563,-1023.55,0.00010411,2]
[348005750,1736265050573,-476.56850245,0.00010411,2]
[348005827,1736265051314,-500.0,9.861e-05,2]
[348005829,1736265051324,-241.42625148,9.861e-05,2]
[348005831,1736265051332,-500.0,9.862e-05,2]
[348005833,1736265051342,-500.0,9.862e-05,2]
[348005835,1736265051352,-329.128118,9.862e-05,2]
[348005837,1736265051361,-500.0,9.862e-05,2]
[348005839,1736265051371,-509.4179875,9.863e-05,2]
[348005841,1736265051381,-500.0,9.863e-05,2]
[348005843,1736265051391,-1600.0,0.0001,3]
[348005845,1736265051400,-153.0,0.00010079,2]
[348005847,1736265051410,-153.0,0.00010079,2]
[348005849,1736265051419,-153.0,0.00010079,2]
[348005851,1736265051428,-153.0,0.00010079,2]
[348005853,1736265051438,-153.0,0.00010079,2]
[348005855,1736265051447,-500.0,0.00010136,2]
[348005857,1736265051456,-500.0,0.00010136,2]
[348005859,1736265051466,-329.128118,0.00010136,2]
[348005861,1736265051475,-329.128118,0.0001041,2]
[348005863,1736265051484,-23.43149755,0.00010411,2]
[348005865,1736265051493,-767.61,0.00010411,2]
[348005867,1736265051505,-724.83,0.00010411,2]
[348005869,1736265051514,-500.0,0.00010411,2]
[348005871,1736265051523,-521.8,0.00010411,2]
[348005873,1736265051532,-769.24,0.00010411,2]
[348005875,1736265051542,-559.08,0.00010411,2]
[348005877,1736265051551,-500.0,0.00010411,2]
[348005879,1736265051560,-855.86,0.00010411,2]
[348005881,1736265051569,-184.33356163,0.00010411,2]
[348005883,1736265051579,-500.0,0.00010411,2]
[348005885,1736265051588,-500.0,0.00010411,2]
[348005887,1736265051597,-631.96,0.00010411,2]
[348005889,1736265051606,-845.96,0.00010411,2]
[348005891,1736265051615,-501.78,0.00010411,2]
[348005893,1736265051626,-500.0,0.00010411,2]
[348005895,1736265051635,-500.0,0.00010411,2]
[348005897,1736265051644,-778.08,0.00010411,2]
[348005899,1736265051653,-1307.95,0.00010411,2]
[348005901,1736265051663,-500.0,0.00010411,2]
[348005903,1736265051672,-500.0,0.00010411,2]
[348005905,1736265051681,-500.0,0.00010411,2]
[348005907,1736265051690,-1360.6,0.00010411,2]
[348005909,1736265051699,-500.0,0.00010411,2]
[348005911,1736265051708,-500.0,0.00010411,2]